[Event "35th European Club Cup 2019"]
[Site "Ulcinj"]
[Date "2019.11.13"]
[Round "4.16"]
[White "De Jong, Jan-Willem"]
[Black "Mohr, Georg"]
[Result "1-0"]
[ECO "B07"]
[WhiteElo "2446"]
[BlackElo "2437"]
[Annotator "NA"]
[PlyCount "131"]
[EventDate "2019.11.10"]
[EventType "team-tourn"]
[EventCountry "MNE"]
[SourceTitle "playchess.com"]
[Source "ChessBase"]
[SourceQuality "1"]
[TimeControl "40/5400+30:1800+30"]

1. d4 d6 2. e4 Nf6 3. Nc3 e5 4. Nf3 exd4 5. Nxd4 Be7 6. Bf4 Nc6 7. Be2 O-O 8. O-O Re8 9. Qd2 Bf8 10. Rad1 Bd7 11. f3 g6 12. Be3 Bg7 13. Rfe1 a6 14. Bf1 Nxd4 15. Bxd4 Be6 16. Qf2 Qe7 17. e5 Nh5 18. exd6 cxd6 19. Nd5 Qd8 20. Bb6 Qd7 21. Nc7 Bxb2 22. Nxa8 Rxa8 23. Bc5 Qa4 24. Bxd6 Bc3 25. Rxe6 fxe6 26. Qe3 Bg7 27. Qxe6+ Kh8 28. Qc4 Qd7 29. Qc7 Qe6 30. Qe7 Qxa2 31. Be5 Qa5 32. Bxg7+ Nxg7 33. Rd7 Qb6+ 34. Kh1 Rg8 35. h3 Qb1 36. Kg1 b5 37. Rc7 Qb2 38. c3 Qc1 39. Qe5 Qd2 40. Ra7 Qa2 41. Qxb5 Qxg2+ 42. Kxg2 axb5 43. Bxb5 Nf5 44. Bd3 Ne3+ 45. Kg3 Rc8 46. Kf4 Nd5+ 47. Ke5 Nxc3 48. Be4 Rf8 49. h4 Ne2 50. h5 Nf4 51. h6 Nh3 52. Bd5 Ng5 53. f4 Nh3 54. Bf7 Nf2 55. Kf6 Ng4+ 56. Kg5 Ne3 57. Ra5 Nf5 58. Be6 Nd6 59. Re5 Ne8 60. Bf7 Nd6 61. Be6 Ne8 62. Bd7 Nf6 63. Bh3 Ne8 64. Re6 Kg8 65. Rc6 Kh8 66. Rc8 1-0

[Event "35th European Club Cup 2019"]
[Site "Ulcinj"]
[Date "2019.11.13"]
[Round "4.17"]
[White "Kobalia, Mikhail"]
[Black "Rogozenco, Dorian"]
[Result "1-0"]
[ECO "B30"]
[WhiteElo "2608"]
[BlackElo "2484"]
[Annotator "ChessBase"]
[PlyCount "117"]
[EventDate "2019.11.10"]
[EventType "team-tourn"]
[EventCountry "MNE"]
[SourceTitle "playchess.com"]
[Source "ChessBase"]
[SourceQuality "1"]
[WhiteTeam "Moscow Chess Team"]
[BlackTeam "Lysa nad Labem"]
[TimeControl "40/5400+30:1800+30"]

1. e4 {[%emt 0:00:00]} c5 {[%emt 0:00:00]} 2. Nf3 {[%emt 0:00:00]} Nc6 {[%emt 0:00:00]} 3. Bb5 {[%emt 0:00:25]} Nf6 {[%emt 0:00:09]} 4. Bxc6 {[%emt 0:02:03]} dxc6 {[%emt 0:00:07]} 5. d3 {[%emt 0:00:04]} Bg4 {[%emt 0:00:05]} 6. Nbd2 {[%emt 0:01:59]} Nd7 {[%emt 0:00:39]} 7. h3 {[%emt 0:05:20]} Bh5 {[%emt 0:00:09]} 8. Nf1 {[%emt 0:00:51]} e5 {[%emt 0:04:08]} 9. Bd2 {[%emt 0:05:52]} f6 {[%emt 0:03:11]} 10. Ng3 {[%emt 0:07:44]} Bf7 {[%emt 0:00:19]} 11. O-O {[%emt 0:00:12]} Qc7 {[%emt 0:36:11]} 12. Qe2 {[%emt 0:03:10]} g6 {[%emt 0:01:41]} 13. a4 {[%emt 0:05:43]} Bd6 {[%emt 0:02:06]} 14. c3 {[%emt 0:01:44]} O-O {[%emt 0:09:57]} 15. Bh6 {[%emt 0:07:20]} Rfe8 {[%emt 0:00:26]} 16. Nh2 {[%emt 0:00:05]} Kh8 {[%emt 0:04:56]} 17. Qe3 {[%emt 0:03:11]} c4 {[%emt 0:10:09]} 18. Rfd1 {[%emt 0:06:45]} Rad8 {[%emt 0:02:45]} 19. Ng4 {[%emt 0:02:35]} Be7 {[%emt 0:06:11]} 20. Qf3 {[%emt 0:11:28]} c5 {[%emt 0:00:32]} 21. Nf1 {[%emt 0:05:01]} Qc6 {[%emt 0:07:38]} 22. Nfe3 {[%emt 0:01:24]} cxd3 {[%emt 0:03:43]} 23. Rxd3 {[%emt 0:00:02]} f5 {[%emt 0:01:02]} 24. Rxd7 {[%emt 0:04:47]} Qxd7 {[%emt 0:00:03]} 25. exf5 {[%emt 0:00:15]} e4 {[%emt 0:02:05]} 26. Qg3 {[%emt 0:08:41]} Qd6 {[%emt 0:01:07]} 27. Bf4 {[%emt 0:01:22]} Qa6 {[%emt 0:00:06]} 28. Be5+ {[%emt 0:10:57]} Kg8 {[%emt 0:00:05]} 29. fxg6 {[%emt 0:00:08]} Qxg6 {[%emt 0:00:48]} 30. Nh6+ {[%emt 0:02:08]} Kf8 {[%emt 0:00:06]} 31. Nef5 {[%emt 0:00:04]} Bf6 {[%emt 0:03:10]} 32. Bd6+ {[%emt 0:00:55]} Be7 {[%emt 0:01:18]} 33. Be5 {[%emt 0:01:03]} Bf6 {[%emt 0:00:01]} 34. Qxg6 {[%emt 0:00:40]} hxg6 {[%emt 0:00:52]} 35. Bxf6 {[%emt 0:00:26]} gxf5 {[%emt 0:00:06]} 36. Bxd8 {[%emt 0:00:05]} Rxd8 {[%emt 0:00:06]} 37. Nxf5 {[%emt 0:00:02]} Bb3 {[%emt 0:01:29]} 38. Ng3 {[%emt 0:00:30]} Bc2 {[%emt 0:00:42]} 39. a5 {[%emt 0:00:00]} c4 {[%emt 0:00:00]} 40. Re1 {[%emt 0:00:00]} Re8 41. Nf5 {[%emt 0:10:07]} Re5 {[%emt 0:01:34]} 42. Nd4 {[%emt 0:00:30]} Bd3 43. Ra1 {[%emt 0:01:10]} a6 {[%emt 0:04:45]} 44. Ra4 {[%emt 0:01:08]} e3 {[%emt 0:05:41]} 45. fxe3 {[%emt 0:00:15]} Rxe3 {[%emt 0:00:04]} 46. Rb4 {[%emt 0:01:20]} Re5 {[%emt 0:00:16]} 47. Rxb7 {[%emt 0:00:06]} Rxa5 {[%emt 0:00:02]} 48. Kf2 {[%emt 0:02:09]} Kg8 {[%emt 0:10:14]} 49. h4 {[%emt 0:00:56]} Ra1 {[%emt 0:00:46]} 50. g4 {[%emt 0:01:35]} a5 {[%emt 0:00:27]} 51. h5 {[%emt 0:00:11]} a4 {[%emt 0:00:32]} 52. h6 {[%emt 0:02:08]} a3 {[%emt 0:02:55]} 53. bxa3 {[%emt 0:00:19]} Rxa3 {[%emt 0:00:03]} 54. Ne6 {[%emt 0:02:47]} Ra6 {[%emt 0:00:43]} 55. Rg7+ {[%emt 0:01:05]} Kh8 {[%emt 0:00:09]} 56. Re7 {[%emt 0:00:03]} Kg8 {[%emt 0:05:54]} 57. Ke3 {[%emt 0:00:36]} Ra1 {[%emt 0:00:05]} 58. Rg7+ {[%emt 0:00:50]} Kh8 {[%emt 0:00:24]} 59. Nd8 {[%emt 0:00:33]} 1-0

[Event "35th European Club Cup 2019"]
[Site "Ulcinj"]
[Date "2019.11.13"]
[Round "4.18"]
[White "Van Ketel, Raoul"]
[Black "Bratkovic, Sham"]
[Result "0-1"]
[ECO "D10"]
[WhiteElo "2212"]
[BlackElo "2232"]
[Annotator "NA"]
[PlyCount "82"]
[EventDate "2019.11.10"]
[EventType "team-tourn"]
[EventCountry "MNE"]
[SourceTitle "playchess.com"]
[Source "ChessBase"]
[SourceQuality "1"]
[TimeControl "40/5400+30:1800+30"]

1. d4 {[%emt 0:00:00]} d5 {[%emt 0:01:03]} 2. c4 {[%emt 0:00:00]} c6 {[%emt 0:00:15]} 3. cxd5 {[%emt 0:00:00]} cxd5 {[%emt 0:00:14]} 4. Bf4 {[%emt 0:00:00]} Nc6 {[%emt 0:02:44]} 5. e3 {[%emt 0:00:17]} Nf6 {[%emt 0:03:32]} 6. Nc3 {[%emt 0:00:10]} Bf5 {[%emt 0:04:28]} 7. Qb3 {[%emt 0:03:53]} Na5 {[%emt 0:05:42]} 8. Qa4+ {[%emt 0:00:42]} Bd7 {[%emt 0:01:03]} 9. Qc2 {[%emt 0:00:12]} Rc8 {[%emt 0:02:23]} 10. Bd3 {[%emt 0:05:26]} e6 {[%emt 0:02:57]} 11. h3 {[%emt 0:03:16]} Qb6 {[%emt 0:05:35]} 12. Nge2 {[%emt 0:14:35]} Bd6 {[%emt 0:04:53]} 13. O-O {[%emt 0:05:41]} Bxf4 {[%emt 0:04:51]} 14. Nxf4 {[%emt 0:00:18]} O-O {[%emt 0:00:19]} 15. Qe2 {[%emt 0:08:32]} Nc4 {[%emt 0:04:42]} 16. Rab1 {[%emt 0:12:28]} Qd6 {[%emt 0:13:08]} 17. Rfd1 {[%emt 0:05:51]} b5 {[%emt 0:03:53]} 18. Rbc1 {[%emt 0:05:12]} Qb4 {[%emt 0:13:08]} 19. b3 {[%emt 0:02:30]} Nd6 {[%emt 0:02:08]} 20. Qb2 {[%emt 0:01:45]} Qa5 {[%emt 0:08:35]} 21. Nb1 {[%emt 0:12:31]} b4 {[%emt 0:02:39]} 22. a4 {[%emt 0:07:53]} bxa3 {[%emt 0:02:52]} 23. Nxa3 {[%emt 0:00:28]} Qb6 {[%emt 0:03:17]} 24. Rxc8 {[%emt 0:03:35]} Rxc8 {[%emt 0:00:08]} 25. Rb1 {[%emt 0:00:07]} Qb4 {[%emt 0:01:42]} 26. Bc2 {[%emt 0:01:46]} Nfe4 {[%emt 0:01:22]} 27. Bxe4 {[%emt 0:04:16]} Nxe4 {[%emt 0:00:08]} 28. Nd3 {[%emt 0:01:08]} Qc3 {[%emt 0:00:44]} 29. Ne5 {[%emt 0:00:21]} Be8 {[%emt 0:01:02]} 30. Qxc3 {[%emt 0:00:57]} Rxc3 {[%emt 0:00:42]} 31. Rb2 {[%emt 0:00:45]} f6 {[%emt 0:01:53]} 32. Nf3 {[%emt 0:00:06]} Rc1+ {[%emt 0:00:47]} 33. Kh2 {[%emt 0:00:01]} Rf1 {[%emt 0:00:16]} 34. Rc2 {[%emt 0:00:46]} Nxf2 {[%emt 0:00:46]} 35. Rc8 {[%emt 0:01:00]} Rh1+ {[%emt 0:00:46]} 36. Kg3 {[%emt 0:00:01]} Ne4+ {[%emt 0:00:07]} 37. Kf4 {[%emt 0:01:05]} Nd6 {[%emt 0:01:46]} 38. Rd8 {[%emt 0:00:15]} g5+ {[%emt 0:00:24]} 39. Nxg5 {[%emt 0:00:36]} fxg5+ {[%emt 0:00:47]} 40. Kf3 {[%emt 0:00:00]} Rf1+ {[%emt 0:00:00]} 41. Ke2 {[%emt 0:00:36]} Ra1 {[%emt 0:00:42]} 0-1

[Event "35th European Club Cup 2019"]
[Site "Ulcinj"]
[Date "2019.11.13"]
[Round "4.19"]
[White "Cernousek, Lukas"]
[Black "Petenyi, Tamas"]
[Result "1-0"]
[ECO "A50"]
[WhiteElo "2461"]
[BlackElo "2420"]
[Annotator "ChessBase"]
[PlyCount "81"]
[EventDate "2019.11.10"]
[EventType "team-tourn"]
[EventCountry "MNE"]
[SourceTitle "playchess.com"]
[Source "ChessBase"]
[SourceQuality "1"]
[WhiteTeam "Unichess"]
[BlackTeam "Dunajska Streda"]
[TimeControl "40/5400+30:1800+30"]

1. d4 {[%emt 0:00:00]} Nf6 {[%emt 0:00:00]} 2. c4 {[%emt 0:00:00]} b6 {[%emt 0:01:44]} 3. f3 {[%emt 0:04:05]} Nc6 {[%emt 0:00:30]} 4. e4 {[%emt 0:00:30]} e5 {[%emt 0:15:17]} 5. d5 {[%emt 0:00:10]} Nxe4 {[%emt 0:08:50]} 6. fxe4 {[%emt 0:02:35]} Qh4+ {[%emt 0:00:21]} 7. Kd2 {[%emt 0:00:58]} Nd4 {[%emt 0:04:33]} 8. Nc3 {[%emt 0:11:31]} Qf2+ {[%emt 0:16:02]} 9. Kd3 {[%emt 0:05:23]} Ba6 {[%emt 0:15:27]} 10. Nh3 {[%emt 0:01:27]} Qf6 {[%emt 0:00:19]} 11. Be3 {[%emt 0:06:01]} c6 {[%emt 0:03:56]} 12. Kd2 {[%emt 0:03:08]} Bc5 {[%emt 0:02:09]} 13. Qg4 {[%emt 0:22:23]} O-O {[%emt 0:02:00]} 14. Bd3 {[%emt 0:00:33]} b5 {[%emt 0:01:15]} 15. cxb5 {[%emt 0:09:02]} cxb5 {[%emt 0:00:27]} 16. Ne2 {[%emt 0:00:18]} Qb6 {[%emt 0:03:25]} 17. Nxd4 {[%emt 0:00:23]} Bxd4 {[%emt 0:01:04]} 18. Qe2 {[%emt 0:00:11]} Rac8 {[%emt 0:02:22]} 19. Rhc1 {[%emt 0:10:11]} f5 20. exf5 {[%emt 0:00:30]} e4 {[%emt 0:07:51]} 21. Rxc8 {[%emt 0:00:39]} Rxc8 {[%emt 0:01:49]} 22. Bxe4 {[%emt 0:01:15]} Re8 {[%emt 0:01:48]} 23. Qd3 {[%emt 0:10:25]} Qa5+ {[%emt 0:01:03]} 24. Kc2 {[%emt 0:09:26]} Bf6 {[%emt 0:00:46]} 25. Nf2 {[%emt 0:00:49]} b4 {[%emt 0:01:25]} 26. Qd2 {[%emt 0:00:02]} Qc7+ {[%emt 0:02:24]} 27. Kd1 {[%emt 0:00:56]} Qxh2 {[%emt 0:01:11]} 28. Rc1 {[%emt 0:00:01]} Qh4 {[%emt 0:02:18]} 29. d6 {[%emt 0:00:31]} h6 {[%emt 0:00:27]} 30. Kc2 {[%emt 0:01:00]} Rc8+ {[%emt 0:03:31]} 31. Kb1 {[%emt 0:00:10]} Rxc1+ {[%emt 0:00:00]} 32. Kxc1 {[%emt 0:00:23]} Kh8 {[%emt 0:00:59]} 33. Bf4 {[%emt 0:00:38]} Bc4 {[%emt 0:00:21]} 34. Qe3 {[%emt 0:00:37]} Bxa2 {[%emt 0:00:39]} 35. Qg3 {[%emt 0:00:22]} Qxg3 {[%emt 0:00:37]} 36. Bxg3 {[%emt 0:00:01]} a5 {[%emt 0:00:04]} 37. Ng4 {[%emt 0:00:31]} Bg5+ {[%emt 0:00:04]} 38. Kc2 a4 39. Ne5 {[%emt 0:00:53]} a3 {[%emt 0:01:12]} 40. b3 {[%emt 0:00:00]} h5 41. Nf7+ {[%emt 0:00:17]} 1-0

[Event "35th European Club Cup 2019"]
[Site "Ulcinj"]
[Date "2019.11.13"]
[Round "4.20"]
[White "Bagi, Mate"]
[Black "Simek, Petr"]
[Result "*"]
[ECO "C48"]
[WhiteElo "2470"]
[BlackElo "2307"]
[Annotator "RC"]
[PlyCount "27"]
[EventDate "2019.11.10"]
[EventType "team-tourn"]
[EventCountry "MNE"]
[SourceTitle "playchess.com"]
[Source "ChessBase"]
[SourceQuality "1"]
[WhiteTeam "Dunajska Streda"]
[BlackTeam "Unichess"]
[TimeControl "40/5400+30:1800+30"]

1. e4 e5 2. Nf3 Nc6 3. Nc3 Nf6 4. Bb5 Nd4 5. Bc4 Bc5 6. d3 d6 7. Na4 b5 8. Nxd4 bxc4 9. Nf5 Bxf5 10. exf5 cxd3 11. Nxc5 dxc5 12. Qxd3 Qxd3 13. cxd3 O-O-O 14. Ke2 *

[Event "35th European Club Cup 2019"]
[Site "Ulcinj"]
[Date "2019.11.13"]
[Round "4.21"]
[White "Sokolov, Andrei"]
[Black "Gibicar, Danijel"]
[Result "1-0"]
[ECO "C03"]
[WhiteElo "2497"]
[BlackElo "2229"]
[Annotator "ChessBase"]
[PlyCount "48"]
[EventDate "2019.11.10"]
[EventType "team-tourn"]
[EventCountry "MNE"]
[SourceTitle "playchess.com"]
[Source "ChessBase"]
[SourceQuality "1"]
[WhiteTeam "Mulhouse"]
[BlackTeam "De Sprenger Echternach"]
[TimeControl "40/5400+30:1800+30"]

1. e4 e6 2. d4 d5 3. Nd2 a6 4. Bd3 c5 5. dxc5 Bxc5 6. Ngf3 Nc6 7. O-O Nge7 8. exd5 Nxd5 9. Ne4 Be7 10. c3 {[%emt 0:16:40]} O-O {[%emt 0:27:41]} 11. Re1 {[%emt 0:00:30]} h6 {[%emt 0:16:28]} 12. Bc2 {[%emt 0:08:34]} Qc7 {[%emt 0:00:30]} 13. Ng3 {[%emt 0:02:12]} Nf6 {[%emt 0:04:57]} 14. Qe2 {[%emt 0:24:18]} Bd7 {[%emt 0:10:46]} 15. Be3 {[%emt 0:00:30]} Rfe8 {[%emt 0:11:20]} 16. Rad1 {[%emt 0:03:07]} Rad8 {[%emt 0:06:58]} 17. h3 {[%emt 0:14:01]} e5 {[%emt 0:00:30]} 18. Ne4 {[%emt 0:01:02]} Be6 {[%emt 0:05:00]} 19. Nxf6+ {[%emt 0:01:22]} Bxf6 {[%emt 0:00:30]} 20. Nh2 {[%emt 0:00:30]} Rxd1 {[%emt 0:05:59]} 21. Qxd1 {[%emt 0:01:30]} Qd7 {[%emt 0:00:39]} 22. Qh5 {[%emt 0:03:41]} Qe7 {[%emt 0:03:50]} 23. Ng4 {[%emt 0:04:32]} Bg5 24. a3 {[%emt 0:10:44]} Bc4 {[%emt 0:04:33]} 1-0

[Event "35th European Club Cup 2019"]
[Site "Ulcinj"]
[Date "2019.11.13"]
[Round "4.22"]
[White "Csonka, Attila Istvan"]
[Black "Bartos, Jan"]
[Result "1/2-1/2"]
[ECO "B15"]
[WhiteElo "2348"]
[BlackElo "2136"]
[Annotator "NA"]
[PlyCount "90"]
[EventDate "2019.11.10"]
[EventType "team-tourn"]
[EventCountry "MNE"]
[SourceTitle "playchess.com"]
[Source "ChessBase"]
[SourceQuality "1"]
[WhiteTeam "Dunajska Streda"]
[BlackTeam "Unichess"]
[TimeControl "40/5400+30:1800+30"]

1. e4 c6 2. d4 d5 3. Nc3 dxe4 {[%emt 0:00:00]} 4. Nxe4 {[%emt 0:00:00]} Nf6 {[%emt 0:00:17]} 5. Ng3 {[%emt 0:00:15]} c5 {[%emt 0:04:19]} 6. Nf3 {[%emt 0:00:12]} Nc6 {[%emt 0:02:14]} 7. Be3 {[%emt 0:00:14]} cxd4 {[%emt 0:01:06]} 8. Nxd4 {[%emt 0:06:52]} Bd7 {[%emt 0:05:46]} 9. Nxc6 {[%emt 0:00:11]} Bxc6 {[%emt 0:00:11]} 10. Qxd8+ {[%emt 0:03:57]} Kxd8 {[%emt 0:00:52]} 11. O-O-O+ {[%emt 0:00:33]} Nd7 {[%emt 0:00:00]} 12. Nf5 {[%emt 0:00:30]} e5 {[%emt 0:00:00]} 13. Bc4 {[%emt 0:11:08]} f6 {[%emt 0:02:51]} 14. Rd2 {[%emt 0:01:50]} Kc7 {[%emt 0:01:36]} 15. Rhd1 {[%emt 0:04:03]} Nb6 {[%emt 0:15:01]} 16. Bb3 {[%emt 0:00:20]} Be4 {[%emt 0:17:06]} 17. Bxb6+ {[%emt 0:02:53]} Kxb6 {[%emt 0:00:28]} 18. Ne3 {[%emt 0:01:22]} Bc5 {[%emt 0:13:24]} 19. Rd7 {[%emt 0:03:04]} Bxe3+ {[%emt 0:03:59]} 20. fxe3 {[%emt 0:00:05]} Bxg2 {[%emt 0:00:21]} 21. Rxg7 {[%emt 0:00:20]} Bc6 {[%emt 0:00:18]} 22. Rd6 {[%emt 0:01:01]} f5 {[%emt 0:00:30]} 23. Rf6 {[%emt 0:01:15]} f4 {[%emt 0:02:59]} 24. exf4 {[%emt 0:00:24]} exf4 {[%emt 0:00:06]} 25. Rxf4 {[%emt 0:00:06]} Rae8 {[%emt 0:00:26]} 26. Ba4 {[%emt 0:04:03]} Re2 {[%emt 0:04:24]} 27. Bxc6 {[%emt 0:01:00]} bxc6 {[%emt 0:00:08]} 28. Rb4+ {[%emt 0:01:36]} Kc5 {[%emt 0:00:45]} 29. Rh4 {[%emt 0:00:05]} Rf8 {[%emt 0:01:21]} 30. b4+ {[%emt 0:00:07]} Kb6 {[%emt 0:00:20]} 31. a4 {[%emt 0:03:08]} Rff2 {[%emt 0:04:49]} 32. Rc4 {[%emt 0:00:07]} Rxh2 {[%emt 0:00:22]} 33. a5+ {[%emt 0:02:46]} Kb5 {[%emt 0:00:35]} 34. Rc3 {[%emt 0:00:05]} Kxb4 {[%emt 0:01:02]} 35. Kb2 {[%emt 0:00:07]} Kxa5 {[%emt 0:03:19]} 36. Rb7 {[%emt 0:00:29]} Ka6 {[%emt 0:00:09]} 37. Rb8 {[%emt 0:00:21]} Re5 {[%emt 0:00:22]} 38. Rxc6+ {[%emt 0:01:28]} Ka5 {[%emt 0:00:06]} 39. Ka3 {[%emt 0:02:18]} Rb5 {[%emt 0:01:46]} 40. Ra8 {[%emt 0:00:00]} Rb7 {[%emt 0:00:00]} 41. Rc5+ {[%emt 0:01:46]} Ka6 {[%emt 0:05:15]} 42. Rc6+ {[%emt 0:02:17]} Rb6 {[%emt 0:00:48]} 43. Rc7 {[%emt 0:00:04]} Rb7 {[%emt 0:00:06]} 44. Rc6+ {[%emt 0:00:35]} Rb6 {[%emt 0:00:07]} 45. Rc7 {[%emt 0:00:05]} Rb7 {[%emt 0:00:04]} 1/2-1/2

[Event "35th European Club Cup 2019"]
[Site "Ulcinj"]
[Date "2019.11.13"]
[Round "4.23"]
[White "Lamser, Jan"]
[Black "Meszaros, Michal"]
[Result "0-1"]
[ECO "A04"]
[WhiteElo "2134"]
[BlackElo "2355"]
[Annotator "NA"]
[PlyCount "44"]
[EventDate "2019.11.10"]
[EventType "team-tourn"]
[EventCountry "MNE"]
[SourceTitle "playchess.com"]
[Source "ChessBase"]
[SourceQuality "1"]
[WhiteTeam "Unichess"]
[BlackTeam "Dunajska Streda"]
[TimeControl "40/5400+30:1800+30"]

1. Nf3 {[%emt 0:00:00]} c5 {[%emt 0:00:27]} 2. e3 {[%emt 0:00:21]} g6 {[%emt 0:00:59]} 3. d4 {[%emt 0:00:24]} Bg7 {[%emt 0:00:41]} 4. Bd3 {[%emt 0:02:02]} Nf6 {[%emt 0:04:08]} 5. O-O {[%emt 0:02:54]} O-O {[%emt 0:01:17]} 6. c3 {[%emt 0:00:54]} d6 {[%emt 0:10:03]} 7. dxc5 {[%emt 0:01:09]} dxc5 {[%emt 0:00:38]} 8. Qe2 {[%emt 0:00:46]} Qc7 {[%emt 0:06:14]} 9. Nbd2 {[%emt 0:01:24]} Nc6 {[%emt 0:02:06]} 10. Rd1 {[%emt 0:03:17]} a6 {[%emt 0:09:45]} 11. Ne4 {[%emt 0:05:37]} Nd7 {[%emt 0:05:01]} 12. c4 {[%emt 0:01:23]} b6 {[%emt 0:07:34]} 13. Nc3 {[%emt 0:06:51]} e6 {[%emt 0:02:15]} 14. Bd2 {[%emt 0:00:58]} Bb7 {[%emt 0:00:44]} 15. Rac1 {[%emt 0:00:26]} Rad8 {[%emt 0:04:52]} 16. Be1 {[%emt 0:05:54]} h6 {[%emt 0:02:58]} 17. h4 {[%emt 0:05:46]} f5 {[%emt 0:01:42]} 18. e4 {[%emt 0:01:55]} f4 {[%emt 0:06:10]} 19. e5 {[%emt 0:02:00]} Nd4 {[%emt 0:06:17]} 20. Nxd4 {[%emt 0:00:36]} cxd4 {[%emt 0:00:05]} 21. Ne4 {[%emt 0:04:07]} f3 {[%emt 0:00:28]} 22. gxf3 {[%emt 0:00:49]} Nxe5 {[%emt 0:00:55]} 0-1

[Event "35th European Club Cup 2019"]
[Site "Ulcinj"]
[Date "2019.11.13"]
[Round "4.24"]
[White "Gnichtel, Gerd"]
[Black "Richard, Emma"]
[Result "1/2-1/2"]
[ECO "E11"]
[WhiteElo "2134"]
[BlackElo "2157"]
[Annotator "NA"]
[PlyCount "93"]
[EventDate "2019.11.10"]
[EventType "team-tourn"]
[EventCountry "MNE"]
[SourceTitle "playchess.com"]
[Source "ChessBase"]
[SourceQuality "1"]
[WhiteTeam "De Sprenger Echternach"]
[BlackTeam "Mulhouse"]
[TimeControl "40/5400+30:1800+30"]

1. d4 {[%emt 0:00:00]} Nf6 {[%emt 0:00:00]} 2. c4 {[%emt 0:00:30]} e6 {[%emt 0:00:08]} 3. Nf3 {[%emt 0:00:30]} Bb4+ {[%emt 0:00:30]} 4. Bd2 {[%emt 0:00:30]} a5 {[%emt 0:00:30]} 5. g3 {[%emt 0:00:30]} d6 {[%emt 0:00:30]} 6. Bg2 {[%emt 0:00:30]} Nbd7 {[%emt 0:00:30]} 7. O-O {[%emt 0:00:30]} e5 {[%emt 0:14:01]} 8. e3 {[%emt 0:17:06]} c6 {[%emt 0:14:07]} 9. Qc2 {[%emt 0:04:32]} e4 {[%emt 0:07:10]} 10. Ng5 {[%emt 0:06:41]} d5 11. cxd5 {[%emt 0:02:35]} cxd5 {[%emt 0:04:02]} 12. f3 {[%emt 0:01:24]} h6 {[%emt 0:00:54]} 13. Nh3 {[%emt 0:01:11]} exf3 {[%emt 0:01:02]} 14. Bxf3 {[%emt 0:00:59]} Nb6 {[%emt 0:11:50]} 15. Nf4 {[%emt 0:01:33]} O-O {[%emt 0:02:55]} 16. Bxb4 {[%emt 0:13:37]} axb4 {[%emt 0:00:07]} 17. Qc5 {[%emt 0:00:49]} b3 {[%emt 0:15:07]} 18. Nc3 {[%emt 0:01:36]} bxa2 {[%emt 0:04:54]} 19. Rxa2 {[%emt 0:07:18]} Rxa2 {[%emt 0:00:38]} 20. Nxa2 {[%emt 0:00:02]} g5 {[%emt 0:10:26]} 21. Nh5 {[%emt 0:14:25]} Nxh5 {[%emt 0:01:10]} 22. Bxh5 {[%emt 0:00:25]} Nc4 {[%emt 0:00:38]} 23. Bf3 {[%emt 0:04:50]} Be6 {[%emt 0:06:56]} 24. Nc3 {[%emt 0:01:19]} Nxe3 {[%emt 0:00:16]} 25. Re1 {[%emt 0:00:28]} b6 {[%emt 0:01:24]} 26. Qb5 {[%emt 0:01:02]} Nc2 {[%emt 0:01:21]} 27. Rd1 {[%emt 0:00:17]} Qf6 {[%emt 0:00:28]} 28. Bxd5 {[%emt 0:06:35]} Nxd4 {[%emt 0:01:44]} 29. Qxb6 {[%emt 0:00:13]} Nf3+ {[%emt 0:00:24]} 30. Kh1 {[%emt 0:01:50]} Ne5 {[%emt 0:00:40]} 31. Bg2 {[%emt 0:00:20]} Nc4 {[%emt 0:00:24]} 32. Qc6 {[%emt 0:08:14]} Rc8 {[%emt 0:00:34]} 33. Nd5 {[%emt 0:00:33]} Qd8 {[%emt 0:00:13]} 34. Qb7 {[%emt 0:00:42]} Kg7 {[%emt 0:00:41]} 35. b3 {[%emt 0:00:44]} Nd6 {[%emt 0:00:43]} 36. Qb4 {[%emt 0:00:18]} Nf5 {[%emt 0:00:14]} 37. Qe1 {[%emt 0:03:10]} Bxd5 {[%emt 0:00:25]} 38. Rxd5 {[%emt 0:00:27]} Qf6 {[%emt 0:00:04]} 39. Rd1 {[%emt 0:00:42]} Qc3 {[%emt 0:00:33]} 40. Qxc3+ {[%emt 0:00:00]} Rxc3 {[%emt 0:00:00]} 41. Rb1 {[%emt 0:02:18]} Ne3 {[%emt 0:09:36]} 42. b4 {[%emt 0:03:26]} Nc4 {[%emt 0:05:15]} 43. Kg1 {[%emt 0:02:06]} Na3 {[%emt 0:07:20]} 44. Rb2 {[%emt 0:01:44]} Nc4 {[%emt 0:00:39]} 45. Rb1 {[%emt 0:00:54]} Na3 {[%emt 0:00:14]} 46. Rb2 {[%emt 0:03:33]} Nc4 {[%emt 0:00:06]} 47. Rb1 {[%emt 0:01:13]} 1/2-1/2